bitfinex/quotes_ETHUSD_20251125
["timestamp","ask_amount","ask_price","bid_price","bid_amount"]
[1764074248926,0.21920001,2922.2,2922.1,4.24779047]
[1764074249146,0.68700001,2922.2,2922.1,4.24779047]
[1764074249828,0.21920001,2922.2,2922.1,4.24779047]
[1764074250741,0.21920001,2922.2,2922.1,4.73399047]
[1764074251040,0.21920001,2922.2,2922.1,5.10359047]
[1764074251208,0.21920001,2922.2,2922.1,5.20359047]
[1764074251409,0.21920001,2922.2,2922.1,4.73399047]
[1764074251608,0.68700001,2922.2,2922.1,4.24779047]
[1764074251947,0.21920001,2922.2,2922.1,4.73399047]
[1764074253515,0.00120001,2922.2,2922.1,5.17371643]
[1764074253837,0.21920001,2922.2,2922.1,5.64331643]
[1764074254062,0.21920001,2922.2,2922.1,4.24779047]
[1764074254063,1.16880001,2922.2,2922.1,4.24779047]
[1764074254210,1.16880001,2922.2,2921.9,3.42242515]
[1764074254211,1.16880001,2922.2,2921.9,0.1]
[1764074254411,1.16880001,2922.2,2921.5,3.42289919]
[1764074254412,0.4678,2922.0,2921.6,0.72559411]
[1764074254645,0.4678,2922.0,2921.9,0.1]
[1764074255417,0.9496,2922.0,2921.9,0.1]
[1764074255948,0.9496,2922.0,2921.9,3.52243061]
[1764074256145,1.26921138,2922.0,2921.9,3.52243061]
[1764074256627,0.78741138,2922.0,2921.9,3.52243061]
[1764074256944,0.467,2922.0,2921.9,3.52243061]
[1764074257144,0.78767757,2922.0,2921.9,3.52243061]
[1764074257326,1.26947757,2922.0,2921.9,3.52243061]
[1764074258060,1.26947757,2922.0,2921.9,3.42243061]
[1764074258915,1.26947757,2922.0,2921.9,3.52243061]
[1764074259129,1.00567757,2922.0,2921.9,2.88276061]
[1764074260546,1.00567757,2922.0,2921.9,0.1]
[1764074261442,0.78767757,2922.0,2921.9,0.1]
[1764074261617,1.48747757,2922.0,2921.9,0.101]
[1764074262018,1.48947757,2922.0,2921.9,0.101]
[1764074262461,1.00767757,2922.0,2921.9,0.101]
[1764074262643,1.48947757,2922.0,2921.9,0.101]
[1764074262956,1.48947757,2922.0,2921.9,3.52343061]
[1764074263266,1.48947757,2922.0,2921.9,4.00963061]
[1764074263267,0.32267757,2922.0,2921.9,4.00963061]
[1764074263628,0.54067757,2922.0,2921.9,4.00963061]
[1764074264541,1.00847757,2922.0,2921.9,3.52343061]
[1764074264747,1.49027757,2922.0,2921.9,3.52343061]
[1764074266154,0.54067757,2922.0,2921.9,4.00963061]
[1764074267027,0.54067757,2922.0,2921.9,3.52343061]
[1764074267028,1.00847757,2922.0,2921.9,3.52343061]
[1764074267231,1.49027757,2922.0,2921.9,3.52343061]
[1764074271158,1.27227757,2922.0,2921.9,3.52343061]
[1764074271463,1.49027757,2922.0,2921.9,3.52343061]
[1764074271960,1.49021484,2922.0,2921.9,3.52343061]
[1764074272157,1.49021484,2922.0,2921.9,0.101]
[1764074272358,1.27221484,2922.0,2921.9,0.101]
[1764074272565,1.49021484,2922.0,2921.9,0.101]
[1764074272865,1.49021484,2922.0,2921.9,3.52343061]
[1764074274038,1.00841484,2922.0,2921.9,3.52343061]
[1764074274672,1.48651484,2922.0,2921.9,3.52343061]
[1764074274853,1.26851484,2922.0,2921.9,0.101]
[1764074275162,1.48651484,2922.0,2921.9,0.001]
[1764074276349,4.90882832,2922.0,2921.9,0.001]
[1764074276893,1.48651484,2922.0,2921.9,0.101]
[1764074277479,1.48651484,2922.0,2921.9,0.001]
[1764074278682,4.90882832,2922.0,2921.9,0.001]
[1764074279367,8.3311418,2922.0,2921.0,3.42445122]
[1764074279567,0.3136,2921.1,2921.0,4.25004533]
[1764074279767,0.3414,2921.1,2921.0,4.25004533]
[1764074279964,0.218,2921.1,2921.0,4.25004533]
[1764074280177,0.7047,2921.1,2921.0,4.25004533]
[1764074280595,1.1828,2921.1,2921.0,0.101]
[1764074280890,1.1828,2921.1,2921.0,0.001]
[1764074280891,1.50339503,2921.1,2921.0,0.001]
[1764074282705,4.92676293,2921.1,2921.0,0.001]
[1764074283023,1.50339503,2921.1,2921.0,0.001]
[1764074283229,4.92676293,2921.1,2921.0,0.001]
[1764074286014,4.92676293,2921.1,2920.6,0.001]
[1764074286015,0.6739,2920.8,2920.6,0.001]
[1764074286190,4.07633178,2920.7,2920.6,0.001]
[1764074286397,0.48,2920.6,2919.9,0.001]
[1764074286592,0.1175,2920.4,2919.9,0.001]
[1764074286797,0.65609503,2920.4,2919.9,0.001]
[1764074287139,1.13419503,2920.4,2919.9,0.001]
[1764074288095,5.2839776,2920.4,2919.9,0.001]
[1764074290619,5.0659776,2920.4,2919.9,0.001]
[1764074290819,5.2839776,2920.4,2919.9,0.001]
[1764074291228,5.0659776,2920.4,2919.9,0.001]
[1764074291419,5.2839776,2920.4,2919.9,0.001]
[1764074293641,5.0659776,2920.4,2919.9,0.001]
[1764074293847,5.2839776,2920.4,2919.9,0.001]
[1764074296618,5.0659776,2920.4,2919.9,0.001]
[1764074297149,4.8058776,2920.4,2919.9,0.001]
[1764074297567,5.2839776,2920.4,2919.9,0.001]
[1764074297731,5.2839776,2920.4,2920.3,0.4738]
[1764074297732,0.32059503,2920.4,2920.3,0.4738]
[1764074297924,0.1902,2920.8,2920.3,0.5738]
[1764074298133,0.50807637,2920.8,2920.3,0.5738]
[1764074298455,0.1902,2921.5,2921.0,0.1]
[1764074298631,0.218,2921.4,2920.3,0.42521421]
[1764074298834,0.218,2921.4,2920.9,0.1]
[1764074299039,0.218,2921.4,2921.3,0.5728]
[1764074299253,0.53598167,2921.4,2921.3,0.1]
[1764074299578,0.218,2921.4,2921.3,0.1]
[1764074300077,0.4781,2921.7,2920.9,0.1]
[1764074300232,0.53604851,2921.6,2921.1,0.282]
[1764074300433,0.31804851,2921.5,2921.1,0.282]
[1764074300965,0.31804851,2921.5,2921.2,0.4752]
[1764074301166,1.39569411,2921.9,2921.4,0.5729]
[1764074301348,3.95877617,2921.8,2921.4,0.5729]
[1764074301668,0.31822837,2921.7,2921.4,0.5729]
[1764074301866,0.31822837,2921.6,2921.4,4.47109829]
[1764074302065,0.218,2921.8,2921.4,4.47109829]
[1764074302272,0.3183336,2921.7,2921.4,0.5729]
[1764074302564,0.3183336,2921.7,2921.4,3.99583483]
[1764074302740,0.3183336,2921.7,2921.4,0.5729]
[1764074303248,0.5363336,2921.6,2921.4,0.1]
[1764074303444,0.7688336,2921.5,2920.8,3.42371952]
[1764074303654,0.31845315,2921.4,2920.9,0.1]
[1764074304073,0.31845315,2921.4,2921.1,0.1]
[1764074304365,0.31845315,2921.4,2920.9,3.89877107]
[1764074304366,3.42266576,2921.7,2921.4,0.1]
[1764074304668,0.218,2921.6,2921.4,0.1]
[1764074305766,0.1968,2921.9,2921.4,0.1]
[1764074305966,4.09916247,2921.9,2921.4,0.1]
[1764074306284,3.42435002,2922.0,2921.4,0.1]
[1764074306285,0.218,2921.8,2921.4,0.1]
[1764074306578,0.218,2921.8,2921.7,0.1]
[1764074306870,0.218,2921.8,2921.7,0.5729]
[1764074307064,0.002,2922.0,2921.9,0.1]
[1764074307246,0.22,2922.0,2921.9,0.5729]
[1764074307846,0.22,2922.0,2921.9,3.99533061]
[1764074308272,0.22,2922.0,2921.9,0.5729]
[1764074309880,1.1504,2922.0,2921.3,0.4752]
[1764074310180,1.06079411,2921.9,2921.1,0.282]
[1764074310480,1.54069411,2921.9,2921.1,0.282]
[1764074310777,0.4799,2921.8,2921.1,3.60534565]
[1764074310951,0.4799,2921.8,2921.4,0.1]
[1764074311474,0.002,2922.0,2921.7,0.4729]
[1764074311677,0.218,2921.9,2921.7,0.4729]
[1764074312097,0.218,2921.9,2921.8,0.4729]
[1764074312590,0.002,2922.0,2921.8,0.4729]
[1764074312762,0.002,2922.0,2921.9,0.5729]
[1764074313082,0.22,2922.0,2921.9,0.5729]
[1764074314703,0.22,2922.0,2921.9,3.99533061]
[1764074314855,0.22,2922.0,2921.9,0.5729]
[1764074315794,0.6705,2922.0,2921.6,3.42275973]
[1764074315962,0.6705,2922.0,2921.9,0.1]
[1764074316164,0.22,2922.0,2921.9,0.1]
[1764074316589,0.002,2922.0,2921.9,3.99533061]
[1764074316895,0.22,2922.0,2921.9,3.99533061]
[1764074317888,0.002,2922.0,2921.9,3.99533061]
[1764074318090,0.002,2922.0,2921.9,4.47053061]
[1764074318091,0.22,2922.0,2921.9,4.47053061]
[1764074318791,0.22,2922.0,2921.9,3.99533061]
[1764074320722,0.002,2922.0,2921.9,3.99533061]
[1764074320925,0.22,2922.0,2921.9,0.5729]
[1764074321828,0.22,2922.0,2921.9,3.52243061]
[1764074322541,0.22,2922.0,2921.9,3.99533061]
[1764074322707,0.002,2922.3,2922.2,0.405504]
[1764074322909,0.002,2922.6,2922.5,0.1]
[1764074323140,0.22,2922.6,2922.5,1.0481]
[1764074323428,0.22,2922.6,2922.5,1.453604]
[1764074324606,0.002,2922.6,2922.5,1.453604]
[1764074324815,0.22,2922.6,2922.5,5.60092608]
[1764074325144,0.002,2922.9,2922.5,5.60092608]
[1764074325145,0.002,2922.9,2922.6,1.60399811]
[1764074325293,0.002,2922.9,2922.8,4.91592837]
[1764074325497,0.069,2922.9,2922.8,4.91592837]
[1764074325802,0.069,2922.9,2922.8,6.11672248]
[1764074325803,0.22,2922.9,2922.8,6.11672248]
[1764074326908,0.22,2922.9,2922.8,5.60057487]
[1764074328159,0.2192,2922.9,2922.8,5.60057487]
[1764074329223,0.0012,2922.9,2922.8,9.572313]
[1764074329440,0.2192,2922.9,2922.8,9.53809924]
[1764074329645,0.1472,2922.9,2922.8,9.53809924]
[1764074330719,0.1472,2922.9,2922.8,5.60057487]
[1764074331613,0.1472,2922.9,2922.8,5.12537487]
[1764074331888,0.1472,2922.9,2922.8,5.59717487]
[1764074332065,0.1472,2922.9,2922.8,5.63138863]
[1764074332760,0.1472,2922.9,2922.8,5.59717487]
[1764074332955,0.1472,2922.9,2922.8,5.12537487]
[1764074333965,0.1472,2922.9,2922.8,5.59717487]
[1764074334761,0.2192,2922.9,2922.8,5.59717487]
[1764074335482,0.002,2923.2,2923.1,0.505504]
[1764074335695,0.22,2923.2,2923.1,6.31172248]
[1764074336392,0.7153,2923.2,2923.1,0.1]
[1764074336772,0.7153,2923.2,2923.1,3.52102562]
[1764074336954,1.1879,2923.2,2923.1,3.52102562]
[1764074337788,1.1879,2923.2,2923.1,0.1]
[1764074338178,0.22,2923.2,2923.1,3.89612562]
[1764074338355,0.22,2923.2,2923.1,3.99612562]
[1764074338555,0.22,2923.2,2923.1,3.52102562]
[1764074339588,0.6879,2923.2,2923.1,3.52102562]
[1764074340309,0.6879,2923.2,2922.7,0.405504]
[1764074340310,1.1404,2923.2,2922.7,3.42138415]
[1764074340589,0.4495,2923.1,2923.0,0.1]
[1764074340976,0.9174,2923.1,2923.0,0.1]
[1764074341791,0.9174,2923.1,2922.9,3.42121687]
[1764074341792,1.2358596,2923.1,2922.7,0.1]
[1764074342102,0.6612,2922.8,2922.7,0.1]
[1764074342274,0.4679,2922.8,2922.7,0.1]
[1764074342458,0.6859,2922.8,2922.7,0.1]
[1764074342790,0.218,2922.8,2922.7,0.1]
[1764074343188,0.218,2922.8,2922.7,3.52149382]
[1764074343984,1.1384,2922.8,2922.7,3.52149382]
[1764074344297,1.45713735,2922.8,2922.7,3.52149382]
[1764074344592,0.218,2922.8,2922.7,3.99659382]
[1764074344792,0.218,2922.8,2922.7,3.52149382]
[1764074344984,0.218,2922.8,2922.7,3.99659382]
[1764074345876,0.002,2923.2,2922.7,11.23628146]
[1764074346208,0.002,2923.2,2923.1,0.5751]
[1764074346518,0.99154039,2923.2,2923.1,0.1]
[1764074346802,1.45944039,2923.2,2923.1,0.1]
[1764074347161,1.45944039,2923.2,2923.0,3.42103428]
[1764074347390,0.77154039,2923.1,2923.0,3.42103428]
[1764074347564,0.91834039,2923.1,2923.0,3.42103428]
[1764074347759,0.91834039,2923.1,2922.9,3.52119845]
[1764074347965,1.23624039,2923.0,2922.9,0.1]
[1764074348167,1.23624039,2923.0,2922.9,3.5212597]
[1764074348405,0.53704039,2923.0,2922.9,3.9963597]
[1764074350690,0.31904039,2923.0,2922.9,4.4018637]
[1764074350907,0.53704039,2923.0,2922.9,4.8985637]
[1764074351392,0.53704039,2923.0,2922.9,4.4028637]
[1764074351596,0.53704039,2923.0,2922.9,4.8995637]
[1764074352184,0.53624039,2923.0,2922.9,5.62515781]
[1764074352777,0.53624039,2923.0,2922.9,5.12845781]
[1764074352984,0.218,2923.0,2922.9,5.12845781]
[1764074353183,0.218,2923.0,2922.9,5.62515781]
[1764074354196,0.002,2923.2,2923.1,0.1]
[1764074354369,0.002,2923.2,2923.1,1.01481425]
[1764074354568,0.22,2923.2,2923.1,1.51151425]
[1764074355281,0.22,2923.2,2923.1,1.477304]
[1764074355708,0.22,2923.2,2923.1,5.62392373]
[1764074357798,0.22,2923.2,2923.1,5.12722373]
[1764074358218,0.6879,2923.2,2923.1,4.24661973]
[1764074358375,1.1404,2923.2,2923.1,4.24661973]
[1764074358568,0.6879,2923.2,2923.1,3.52102562]
[1764074359001,0.22,2923.2,2923.1,3.52102562]
[1764074359588,0.6879,2923.2,2923.1,3.52102562]
[1764074360877,0.6879,2923.2,2923.1,3.42102562]
[1764074360878,1.1537,2923.2,2923.1,3.42102562]
[1764074361609,0.6879,2923.2,2922.9,0.101]
[1764074361958,0.218,2923.1,2922.9,0.001]
[1764074362209,0.002,2923.2,2923.1,0.1]
[1764074362412,0.22,2923.2,2923.1,0.1]
[1764074363119,0.691,2923.2,2923.1,0.1]
[1764074363919,0.691,2923.2,2923.1,3.52102562]
[1764074364278,1.47715185,2923.2,2923.1,3.52102562]
[1764074364476,0.9388,2923.2,2923.1,3.52102562]
[1764074364718,1.1568,2923.2,2923.1,3.52102562]
[1764074365214,0.691,2923.2,2923.1,3.52102562]
[1764074367686,0.4678,2923.5,2923.1,3.52102562]
[1764074367687,0.002,2923.5,2923.1,5.14932373]
[1764074367888,0.002,2923.5,2923.4,1.72829811]
[1764074368104,0.002,2923.5,2923.4,0.1]
[1764074368105,0.691,2923.5,2923.4,0.1]
[1764074368405,1.1568,2923.5,2923.4,0.1]
[1764074368608,0.9388,2923.5,2923.4,0.1]
[1764074368904,0.691,2923.5,2923.4,3.42067455]
[1764074369122,0.9388,2923.5,2923.4,3.52067455]
[1764074369320,1.47703956,2923.5,2923.4,3.52067455]
[1764074369608,1.47703956,2923.5,2923.4,0.1]
[1764074370311,1.47703956,2923.5,2923.4,3.52067455]
[1764074370890,1.47703956,2923.5,2923.4,0.1]
[1764074371718,1.47703956,2923.5,2923.0,3.42204477]
[1764074371918,0.78283956,2923.4,2923.3,0.1]
[1764074372381,1.25383956,2923.4,2923.3,0.1]
[1764074373243,1.47183956,2923.4,2923.3,3.52079157]
[1764074374300,1.00923956,2923.4,2923.3,3.52079157]
[1764074374592,1.47503956,2923.4,2923.3,3.52079157]
[1764074376081,1.47423956,2923.4,2923.3,3.52079157]
[1764074376788,1.47423956,2923.4,2923.2,3.52089769]
[1764074377052,0.6103,2923.3,2923.2,3.52089769]
[1764074377457,0.6103,2923.3,2923.2,0.1]
[1764074377620,0.6103,2923.3,2923.0,0.001]
[1764074377820,0.4677,2923.1,2923.0,3.42204753]
[1764074378330,0.9335,2923.1,2923.0,3.42204753]
[1764074378512,0.9335,2923.1,2923.0,3.52204753]
[1764074378716,0.4677,2923.1,2923.0,3.52204753]
[1764074379046,0.4677,2923.1,2923.0,3.42204753]
[1764074379443,0.218,2923.4,2923.0,6.84319019]
[1764074379648,0.218,2923.4,2923.3,0.1]
[1764074380059,4.10967455,2923.4,2923.0,0.001]
[1764074380214,0.1445,2923.1,2923.0,0.001]
[1764074380661,0.6103,2923.1,2923.0,0.001]
[1764074383457,0.8283,2923.1,2923.0,0.101]
[1764074384132,0.8283,2923.1,2923.0,0.001]
[1764074385220,0.218,2923.1,2923.0,0.001]
[1764074385420,0.6857,2923.1,2923.0,0.001]
[1764074387760,0.218,2923.1,2923.0,0.101]
[1764074388126,0.53814058,2923.1,2923.0,0.101]
[1764074388457,0.53814058,2923.1,2923.0,0.001]
[1764074388757,1.00584058,2923.1,2923.0,0.001]
[1764074389954,1.00584058,2923.1,2923.0,0.101]
[1764074390155,1.00584058,2923.1,2923.0,0.001]
[1764074392872,4.4268662,2923.1,2923.0,0.001]
[1764074396169,1.00584058,2923.1,2923.0,0.001]
[1764074397252,0.78784058,2923.1,2923.0,0.001]
[1764074397572,1.00584058,2923.1,2923.0,0.001]
[1764074400072,4.4268662,2923.1,2923.0,0.001]
[1764074400273,4.4260662,2923.1,2923.0,0.001]
[1764074402182,1.00504058,2923.1,2923.0,0.001]
[1764074402384,4.4260662,2923.1,2923.0,0.001]
[1764074405289,1.00504058,2923.1,2923.0,0.001]
[1764074405490,4.4260662,2923.1,2923.0,0.001]
[1764074405991,1.00504058,2923.1,2923.0,0.001]
[1764074406483,4.4260662,2923.1,2923.0,0.001]
[1764074408454,1.00504058,2923.1,2923.0,0.001]
[1764074409185,4.4260662,2923.1,2923.0,0.001]
[1764074410285,1.00504058,2923.1,2923.0,0.001]
[1764074410687,4.4260662,2923.1,2923.0,0.001]
[1764074411578,1.00504058,2923.1,2923.0,0.001]
[1764074411976,1.73063469,2923.1,2923.0,0.001]
[1764074412177,5.89147961,2923.1,2923.0,0.001]
[1764074412376,1.00504058,2923.1,2923.0,0.001]
[1764074412696,5.15166031,2923.1,2923.0,0.001]
[1764074413752,1.51263469,2923.1,2923.0,0.001]
[1764074413996,0.31934058,2923.1,2923.0,0.979]
[1764074414294,0.53734058,2923.1,2923.0,0.4927]
[1764074415572,0.31934058,2923.1,2923.0,1.079]
[1764074415777,0.53734058,2923.1,2923.0,1.079]
[1764074416609,0.31934058,2923.1,2923.0,4.40014266]
[1764074416778,0.53734058,2923.1,2923.0,4.50014266]
[1764074418375,0.53734058,2923.1,2923.0,7.53814572]
[1764074418711,0.31934058,2923.1,2923.0,7.53814572]
[1764074419016,0.53734058,2923.1,2923.0,7.53814572]
[1764074420025,0.31934058,2923.1,2923.0,7.53814572]
[1764074420324,0.53734058,2923.1,2923.0,7.53814572]
[1764074420677,0.53734058,2923.1,2923.0,0.4927]
[1764074420883,0.53734058,2923.1,2923.0,0.001]
[1764074421193,1.00114058,2923.1,2923.0,0.001]
[1764074421917,1.00314058,2923.1,2923.0,0.001]
[1764074423796,4.4241662,2923.1,2923.0,0.001]
[1764074423983,4.4326662,2923.1,2923.0,0.001]
[1764074424185,4.4318662,2923.1,2923.0,0.001]
[1764074424375,4.4233662,2923.1,2923.0,0.001]
[1764074425009,4.4318662,2923.1,2923.0,0.001]
[1764074430246,8.93401043,2923.1,2923.0,0.001]
[1764074430445,9.96513199,2923.1,2923.0,0.001]
[1764074430644,1.13109811,2923.0,2922.7,0.001]
[1764074430943,3.22320306,2922.8,2922.7,0.001]
[1764074431239,3.96175012,2922.8,2922.7,0.001]
[1764074431436,4.44395012,2922.8,2922.7,0.001]
[1764074431950,1.40594706,2922.8,2922.7,0.001]
[1764074432254,5.18245688,2922.8,2922.7,0.001]
[1764074432617,4.15992382,2922.8,2922.7,0.4885]
[1764074432835,0.218,2922.8,2922.7,0.4885]
[1764074433642,0.218,2922.8,2922.7,0.9583]
[1764074433937,0.218,2922.8,2922.7,0.4885]
[1764074434126,0.218,2922.8,2922.7,0.001]
[1764074434127,3.63937676,2922.8,2922.7,0.001]
[1764074434332,3.64957676,2922.8,2922.7,0.001]
[1764074434732,4.13177676,2922.8,2922.7,0.001]
[1764074435038,3.64957676,2922.8,2922.7,0.001]
[1764074435429,4.85737087,2922.8,2922.7,0.001]
[1764074436242,5.17756842,2922.8,2922.7,0.001]
[1764074438943,1.13109811,2922.7,2922.6,0.001]
[1764074439145,14.32955395,2922.7,2922.6,0.001]
[1764074439321,0.405504,2922.4,2922.3,0.001]
[1764074439529,5.90841686,2922.4,2922.3,0.001]
[1764074439832,6.82958696,2922.4,2922.3,0.001]
[1764074440229,2.87020154,2922.4,2922.3,0.001]
[1764074440427,3.00737551,2922.4,2922.3,0.001]
[1764074440949,10.61969892,2922.4,2922.3,0.001]
[1764074441345,9.69831656,2922.4,2922.3,0.001]
[1764074441845,10.61969892,2922.4,2922.3,0.001]
[1764074442238,9.69831656,2922.4,2922.3,0.001]
[1764074442939,6.42922056,2922.4,2922.3,0.001]
[1764074443244,9.06199056,2922.4,2922.3,0.001]
[1764074444617,12.10388856,2922.4,2922.3,0.001]
[1764074444828,11.76381856,2922.4,2922.3,0.001]
[1764074446241,12.25230306,2922.4,2922.3,0.001]
[1764074446831,1.13109811,2922.2,2922.1,0.001]
[1764074447032,13.24044479,2922.2,2922.1,0.001]
[1764074447236,11.91472479,2922.2,2922.1,0.001]
[1764074447437,11.13696129,2922.2,2922.1,0.001]
[1764074447633,9.81140129,2922.2,2922.1,0.001]
[1764074447836,12.57755229,2922.2,2922.1,0.001]
[1764074448357,13.06523679,2922.2,2922.1,0.001]
[1764074448647,12.12023679,2922.2,2922.1,0.001]
[1764074448844,6.69915479,2922.2,2922.1,0.001]
[1764074449047,13.06723679,2922.2,2922.1,0.001]
[1764074449249,3.76749211,2921.5,2921.4,0.001]
[1764074449426,4.30568966,2921.5,2921.4,0.001]
[1764074449633,4.76948966,2921.5,2921.4,0.001]
[1764074450346,5.31220716,2921.5,2921.4,0.001]
[1764074451230,8.73510635,2921.5,2921.4,0.001]
[1764074456558,8.51710635,2921.5,2921.4,0.001]
[1764074456758,8.73510635,2921.5,2921.4,0.001]
[1764074457472,9.22359085,2921.5,2921.4,0.001]
[1764074458723,8.73510635,2921.5,2921.4,0.001]
[1764074460937,9.47025932,2921.5,2921.4,0.001]
[1764074461138,13.07625932,2921.5,2921.4,0.001]
[1764074461338,20.19667932,2921.5,2921.4,0.001]
[1764074461756,18.63630732,2921.5,2921.4,0.001]
[1764074462634,13.07625932,2921.5,2921.4,0.001]
[1764074463068,4.61546321,2921.5,2921.4,0.468]
[1764074463270,3.88031024,2921.5,2921.4,0.9241]
[1764074463564,4.82390435,2921.5,2921.4,0.9241]
[1764074467565,4.82390435,2921.5,2921.4,0.468]
[1764074468216,4.82390435,2921.5,2921.4,0.9241]
[1764074468372,4.82390435,2921.5,2921.4,0.468]
[1764074468577,4.82390435,2921.5,2921.4,0.001]
[1764074469199,4.82390435,2921.5,2921.4,0.468]
[1764074469497,5.56225091,2921.5,2921.4,0.468]
[1764074469695,4.82390435,2921.5,2921.4,0.9241]
[1764074470761,5.56235621,2921.5,2921.4,0.9241]
[1764074471171,5.56235621,2921.5,2921.4,0.468]
[1764074471387,5.56270159,2921.5,2921.4,0.468]
[1764074471596,5.56270159,2921.5,2921.4,0.001]
[1764074471960,5.56270159,2921.5,2921.4,0.468]
[1764074472256,5.56190159,2921.5,2921.4,0.468]
[1764074473263,5.56190159,2921.5,2921.4,0.9241]
[1764074473586,4.68703623,2921.5,2921.4,0.9241]
[1764074473801,5.42567585,2921.5,2921.4,0.9131]
[1764074473997,5.42569523,2921.5,2921.4,0.9131]
[1764074475067,4.46903623,2921.5,2921.4,0.9131]
[1764074475264,4.68703623,2921.5,2921.4,0.9131]
[1764074475467,4.46903623,2921.5,2921.4,0.9131]
[1764074475665,4.68703623,2921.5,2921.4,0.9131]
[1764074477714,0.32054293,2921.5,2921.4,0.9131]
[1764074478013,0.53854293,2921.5,2921.4,1.0131]
[1764074478196,0.53854293,2921.5,2921.4,0.9131]
[1764074481814,3.96144212,2921.5,2921.4,0.9131]
[1764074482109,0.53854293,2921.5,2921.4,0.9131]
[1764074482424,0.32054293,2921.5,2921.4,1.0131]
[1764074482577,0.32054293,2921.5,2921.4,4.43611636]
[1764074482578,0.53854293,2921.5,2921.4,4.43611636]
[1764074483904,0.53829276,2921.5,2921.4,4.43611636]
[1764074484615,0.32029276,2921.5,2921.4,4.43611636]
[1764074484813,0.53829276,2921.5,2921.4,7.47801436]
[1764074485880,0.53829276,2921.5,2921.4,1.0131]
[1764074486399,0.53829276,2921.5,2921.4,4.43611636]
[1764074487124,0.53829276,2921.5,2921.4,1.0131]
[1764074487680,0.53829276,2921.5,2921.4,4.43611636]
[1764074489416,0.53829276,2921.5,2921.4,4.33611636]
[1764074489620,0.53829276,2921.5,2921.4,4.43711636]
[1764074489783,0.54029276,2921.5,2921.4,4.43711636]
[1764074490313,0.22,2921.5,2921.4,4.43711636]
[1764074490826,0.54006677,2921.5,2921.4,4.43711636]
[1764074492983,0.54006677,2921.5,2921.4,0.9141]
[1764074493186,0.54006677,2921.5,2921.4,4.43711636]
[1764074494410,0.54006677,2921.5,2921.4,1.0141]
[1764074495107,0.54006677,2921.5,2921.4,4.43711636]
[1764074496119,0.53926677,2921.5,2921.4,4.43711636]
[1764074497023,0.53945965,2921.5,2921.4,4.43711636]
[1764074497843,0.53945965,2921.5,2921.4,0.458]
[1764074498212,3.96235884,2921.5,2921.4,0.458]
[1764074498412,4.45995884,2921.5,2921.4,0.001]
[1764074498812,3.96235884,2921.5,2921.4,0.4845]
[1764074499030,0.53945965,2921.5,2921.4,0.4845]
[1764074500337,3.96235884,2921.5,2921.4,0.4845]
[1764074500646,0.53945965,2921.5,2921.4,0.4845]
[1764074501049,0.53945965,2921.5,2921.4,1.051]
[1764074501555,0.54025965,2921.5,2921.4,1.051]
[1764074501933,0.54025965,2921.5,2921.4,0.951]
[1764074503125,0.54025965,2921.5,2921.4,4.47401636]
[1764074503356,0.54025965,2921.5,2921.4,4.37401636]
[1764074504121,0.54025965,2921.5,2921.4,0.951]
[1764074504415,0.54025965,2921.5,2921.4,0.4845]
[1764074504616,0.54025965,2921.5,2921.4,0.001]
[1764074510352,0.54025965,2921.5,2921.4,0.9412]
[1764074510754,0.54025965,2921.5,2921.4,4.46421636]
[1764074511556,0.54025965,2921.5,2921.4,4.36421636]
[1764074512169,0.54025965,2921.5,2921.4,0.474]
[1764074512563,0.54025965,2921.5,2921.4,0.001]
[1764074513137,3.96315884,2921.5,2921.4,0.001]
[1764074513441,4.44815884,2921.5,2921.4,0.001]
[1764074514662,4.23015884,2921.5,2921.4,0.001]
[1764074514866,4.44815884,2921.5,2921.4,0.001]
[1764074516657,4.43235884,2921.5,2921.4,0.001]
[1764074516968,6.92646231,2921.5,2921.4,0.001]
[1764074519574,6.18687421,2921.5,2921.4,0.001]
[1764074519870,5.96887421,2921.5,2921.4,0.001]
[1764074520043,6.18687421,2921.5,2921.4,0.001]
[1764074520373,6.18607421,2921.5,2921.4,0.001]
[1764074521174,9.96692054,2921.5,2921.4,0.001]
[1764074522167,10.37242454,2921.5,2921.4,0.001]
[1764074522766,11.2938069,2921.5,2921.4,0.001]
[1764074523277,8.03392604,2921.5,2921.4,0.001]
[1764074523776,6.92526201,2921.5,2921.4,0.001]
[1764074524847,6.70726201,2921.5,2921.4,0.001]
[1764074525073,6.92526201,2921.5,2921.4,0.001]
[1764074531201,6.92505502,2921.5,2921.4,0.001]
[1764074531881,7.33055902,2921.5,2921.4,0.001]
[1764074533875,7.33055562,2921.5,2921.4,0.001]
[1764074536921,31.41870548,2921.5,2921.1,0.001]
[1764074537091,3.76747497,2921.2,2921.1,0.001]
[1764074537290,5.29041203,2921.2,2921.1,0.001]
[1764074537609,5.42764577,2921.2,2921.1,0.001]
[1764074538112,9.99119269,2921.2,2921.1,0.001]
[1764074538493,5.80901562,2921.2,2921.1,0.001]
[1764074538696,6.02701562,2921.2,2921.1,0.001]
[1764074539085,5.34531562,2921.2,2921.1,0.001]
[1764074539304,4.68711641,2921.2,2921.1,1.1566]
[1764074539515,4.68711641,2921.2,2921.1,0.001]
[1764074539894,4.68711641,2921.2,2921.1,0.476]
[1764074540297,4.46911641,2921.2,2921.1,1.147]
[1764074540495,1.2638657,2921.2,2921.1,1.147]
[1764074540696,0.53827159,2921.2,2921.1,1.147]
[1764074541014,0.32027159,2921.2,2921.1,1.147]
[1764074541210,0.53827159,2921.2,2921.1,1.147]
[1764074541516,0.0012,2921.5,2921.1,7.61224876]
[1764074541831,0.002,2921.8,2921.6,0.1]
[1764074541978,0.002,2921.8,2921.7,1.05]
[1764074542179,0.002,2921.8,2921.7,0.95]